Cogmind - Beta 16.1 @@@ ROGUE MODE // 2026.03.09 @ 07:39:02 Player: Sen Result: Destroyed by KS-Q47(R) with Subdweller Laser Performance ------------- Evolutions (0) 0 Regions Visited (3) 600 Robots Destroyed (30) 150 Value Destroyed (773) 773 Prototype IDs (4) 80 Alien Tech Used (0) 0 Bonus (0) 0 TOTAL SCORE: 1603 Bonus ------- None Cogmind --------- Core Integrity 0/250 Matter 17/300 Energy 100/100 System Corruption 0% Temperature Cool (6) Movement Rolling (110) Ox2 Location -10/Subcaves Parts ------- > --- POWER (1) -------- (None) > --- PROPULSION (2) --- Spiked Treads Wheel > --- UTILITY (2) ------ Large Storage Unit Core Shielding > --- WEAPON (2) ------- Maul > --- INVENTORY (15) --- Light Ion Engine Light Ion Engine Light Ion Engine Light Treads Wheel Sensor Array Signal Interpreter Improved Terrain Scanner Core Shielding Small Laser Assault Rifle Light Cannon Grenade Launcher Peak State ------------ > --- POWER ------------ Light Ion Engine > --- PROPULSION ------- Light Treads Light Treads > --- UTILITY ---------- Large Storage Unit Improved Terrain Scanner > --- WEAPON ----------- EM Pulse Gun Maul > --- INVENTORY -------- Light Ion Engine Light Ion Engine Light Ion Engine Light Treads Spiked Treads Wheel Wheel Sensor Array Signal Interpreter Core Shielding Core Shielding Small Laser Assault Rifle Light Cannon Grenade Launcher [Rating: 11] Favorites ----------- Power Light Ion Engine Engine Light Ion Engine Propulsion Light Treads Treads Light Treads Leg Aluminum Leg Wheel Wheel Utility Large Storage Unit Device Improved Terrain Scanner Storage Large Storage Unit Protection Core Shielding Weapon EM Pulse Gun Energy Gun EM Pulse Gun Ballistic Gun Assault Rifle Ballistic Cannon Light Cannon Launcher Grenade Launcher Special Weapon Mining Laser Impact Weapon Maul Build | -11 -10 -10 -10 ------- Run | Yrd Mat Min Sub Slots Evolved . | . . . . Power . | . . . . Propulsion . | . . . . Utility . | . . . . Weapon . | . . . . Parts Attached 31 | 7 14 4 6 Power 5 | 1 3 1 . Engine 5 | 1 3 1 . Core . | . . . . Reactor . | . . . . Propulsion 7 | 2 3 . 2 Treads 4 | . 3 . 1 Leg 2 | 2 . . . Wheel 1 | . . . 1 Hover . | . . . . Flight . | . . . . Utility 7 | 2 2 1 2 Device 3 | 1 1 . 1 Storage 2 | 1 1 . . Processor . | . . . . Hackware . | . . . . Protection 2 | . . 1 1 Artifact . | . . . . Weapon 12 | 2 6 2 2 Energy Gun 4 | 2 . 1 1 Energy Cannon . | . . . . Ballistic Gun 3 | . 2 . 1 Ballistic Cannon 2 | . 2 . . Launcher 1 | . . 1 . Special Weapon 1 | . 1 . . Impact Weapon 1 | . 1 . . Slashing Weapon . | . . . . Piercing Weapon . | . . . . Special Melee Weapon . | . . . . Unidentified Prototypes . | . . . . Parts Lost 6 | . 2 . 4 Power 1 | . . . 1 Propulsion 4 | . 2 . 2 Utility . | . . . . Weapon 1 | . . . 1 Highest Loss Streak 4 | . 1 . 4 To Critical Strikes . | . . . . Average Backups 13 | 3 12 14 14 Power 2 | . 1 2 3 Propulsion 3 | 1 4 3 3 Utility 3 | . 1 4 4 Weapon 4 | 1 5 5 4 Tool/Special . | . . . . Unused Backups 5 | . . . 5 Power 2 | . . . 2 Propulsion 2 | . . . 2 Utility 1 | . . . 1 Weapon . | . . . . Tool/Special . | . . . . Average Slot Usage (%) 99 | . 99 99 99 Engine 13 | . 13 14 13 Treads 24 | . 17 28 27 Leg 3 | . 10 . . Device 11 | . 13 13 10 Storage 14 | . 14 14 14 Protection 2 | . . . 3 Energy Gun 11 | . 9 11 12 Ballistic Gun 2 | . 6 . . Ballistic Cannon 6 | . 11 14 2 Launcher 3 | . . 1 5 Impact Weapon 4 | . . . 8 Peak Build Rating 11 | 9 10 10 11 Average Rating 9 | 4 9 9 9 On Entrance 6 | . 9 10 8 Avg Prop Armor Cover (%) 23 | . . . 23 Naked Turns . | . . . . Heaviest Build 33 | 12 33 30 30 Greatest Support 40 | 20 40 40 40 Greatest Overweight (x) 2 | . 1 . 2 Average Overweight (x) . | . . . . Largest Inventory Capacity 15 | 8 15 15 15 Average Capacity 14 | 7 14 15 15 Most Carried 15 | 7 15 15 15 Average Carried 13 | 3 12 14 14 Final Capacity 15 | 8 15 15 15 Final Carried 15 | 7 15 15 13 Class Distribution -------------------- 100% | Mutant Dominant Class ---------------- Mutant | -10/Materials Mutant | -10/Mines Mutant | -10/Subcaves Resources | -11 -10 -10 -10 ----------- Run | Yrd Mat Min Sub Matter Collected 956 | 222 411 187 136 Remotely . | . . . . Salvage Created 1079 | 16 699 228 136 Parts 61 | 4 40 6 11 Haulers Intercepted 1 | . 1 . . Recyclers Shooed 5 | . 4 1 . Parts Field Recycled . | . . . . Retrieved Matter . | . . . . Parts Self-Destructed 5 | . . . 5 Prevented . | . . . . Parts Restored . | . . . . Kills | -11 -10 -10 -10 ------- Run | Yrd Mat Min Sub Combat Hostiles Destroyed 21 | . 14 5 2 Guns 4 | . 4 . . Cannons 14 | . 10 4 . AOE 2 | . . 1 1 Classes Destroyed 9 | 1 6 . 2 Worker 1 | . 1 . . Tunneler 2 | 1 . 1 . Hauler 1 | . 1 . . Recycler 4 | . 3 1 . Watcher 1 | . 1 . . Swarmer 3 | . 3 . . Grunt 16 | . 11 5 . Artisan 1 | . . . 1 Subdweller 2 | . . . 2 Best Kill Streak 5 | 1 5 3 1 Combat Bots Only 3 | . 3 2 1 Max Kills in Single Turn 1 | 1 1 1 1 Gunslinging . | . . . . Exploded 1 | . . 1 1 Melee . | . . . . Uniques/NPCs Destroyed . | . . . . Combat | -11 -10 -10 -10 -------- Run | Yrd Mat Min Sub Hostile Shots Fired 134 | . 77 32 25 Missed 42 | . 22 13 7 Hits 92 | . 55 19 18 Projectile 92 | . 55 19 18 AOE 6 | . . . 6 Damage Taken 1618 | . 742 228 648 Core 252 | . 72 55 125 Absorbed by Shields . | . . . . Redirected to Shielding 22 | . . . 22 Regen/Repaired (Parts) 31 | . 31 . . Core Remaining (%) 100 | 100 . . . Volleys Fired 105 | 1 64 25 15 Largest 2 | 2 2 2 2 Hottest 150 | 90 150 70 80 Shots Fired 204 | 2 128 45 29 Gun 110 | 2 82 15 11 Cannon 78 | . 45 25 8 Launcher 15 | . . 5 10 Special 1 | . 1 . . Kinetic 113 | . 80 25 8 Thermal 54 | 2 48 . 4 Explosive 15 | . . 5 10 Electromagnetic 22 | . . 15 7 Robot Hit Streak 11 | 1 11 10 9 Robot Miss Streak 4 | 1 4 3 1 Penetration Max . | . . . . Secondary Targets . | . . . . Shots Hit Robots 118 | 1 75 27 15 Core Hits 57 | 1 33 10 13 Critical Kills . | . . . . Critical Parts Destroyed . | . . . . Critical Strikes 8 | . 5 3 . Burn 4 | . 4 . . Blast 2 | . 1 1 . Corrupt 2 | . . 2 . Melee Attacks 39 | . 1 . 38 Impact 39 | . 1 . 38 Slashing . | . . . . Piercing . | . . . . Sneak Attacks 1 | . . . 1 Combat Hostiles . | . . . . Follow-up Attacks . | . . . . Damage Inflicted 2641 | 12 1228 738 663 Guns 819 | 12 626 129 52 Cannons 916 | . 602 314 . Explosions 662 | . . 295 367 Melee 244 | . . . 244 Ramming . | . . . . Kinetic 1186 | . 872 314 . Thermal 378 | 12 356 . 10 Explosive 662 | . . 295 367 Electromagnetic 171 | . . 129 42 Impact 244 | . . . 244 Slashing . | . . . . Piercing . | . . . . Highest Corruption . | . . . . Average Corruption . | . . . . Corruption Purged . | . . . . Corruption Blocked . | . . . . Overload Shots . | . . . . Overflow Damage 22 | . 9 3 10 Projectiles 9 | . 9 . . Explosions 11 | . . 3 8 Melee 2 | . . . 2 Knockbacks 10 | . 8 1 1 Impact 1 | . . . 1 Kinetic 8 | . 7 1 . Secondary 1 | . 1 . . Self-Inflicted Damage 75 | . . . 75 Shots 3 | . . . 3 Rammed . | . . . . Targets Rammed . | . . . . Kicked . | . . . . Crushed . | . . . . Highest Temperature 183 | 30 60 183 . Average Temperature 46 | 18 22 63 . Received Heat Transfer 561 | . 378 129 54 Siege Activations . | . . . . Martial Activations . | . . . . Shielding Activations . | . . . . Robots Disrupted . | . . . . Combat Hostiles . | . . . . Robots Corrupted 1 | . . . 1 Combat Hostiles 1 | . . . 1 Parts Fried 1 | . . 1 . Impact Corruptions 1 | . . . 1 Robots Melted . | . . . . Combat Hostiles . | . . . . Parts Melted . | . . . . Heat Transferred 1394 | 37 1332 . 25 Parts Sabotaged . | . . . . Parts Stolen . | . . . . Parts Stripped . | . . . . Power Chain Reactions . | . . . . Alert | -11 -10 -10 -10 ------- Run | Yrd Mat Min Sub Maximum Alert Level . | . . . . Low Security (%) 100 | 100 100 100 . Level 1 . | . . . . Level 2 . | . . . . Level 3 . | . . . . Level 4 . | . . . . Level 5 . | . . . . High Security . | . . . . Max Security . | . . . . Peak Influence 133 | 5 133 82 . Initial 47 | . . 47 . Average 32 | . 33 35 . Influence Increases 558 | 5 407 146 . Destroy 0b10 Robot/C 380 | . 280 100 . Destroy 0b10 Robot/NC 45 | 5 30 10 . Destroy Leader 84 | . 64 20 . Successful Hack 16 | . 16 . . Disable Machine 15 | . 15 . . Destroy Structure 18 | . 2 16 . Influence Decreases 558 | 5 284 203 66 Entered New Map 111 | . . 76 35 Time Decay 427 | 5 264 127 31 Lost Part 20 | . 20 . . Squads Dispatched 4 | . 4 . . Investigation 1 | . 1 . . Extermination . | . . . . Reinforcement 3 | . 3 . . Assault . | . . . . Garrison . | . . . . Intercept . | . . . . Searches Triggered . | . . . . Construction Impeded . | . . . . Haulers Reinforced . | . . . . Active Scanning Responses . | . . . . Cargo Convoy Interrupts . | . . . . Stealth | -11 -10 -10 -10 --------- Run | Yrd Mat Min Sub Distress Signals 2 | . 2 . . Communications Jammed . | . . . . Distress Signals . | . . . . Times Spotted 36 | . 27 5 4 Peak Tracking Total 4 | . 4 3 2 Tactical Retreats . | . . . . Traps | -11 -10 -10 -10 ------- Run | Yrd Mat Min Sub Traps Triggered 5 | . 5 . . Indirectly . | . . . . Trap Hack Attempts . | . . . . Triggered . | . . . . Disarmed . | . . . . Reprogrammed . | . . . . Reused . | . . . . Traps Extracted . | . . . . Installed 1 | . . . 1 Triggered . | . . . . Machines | -11 -10 -10 -10 ---------- Run | Yrd Mat Min Sub Machines Disabled 1 | . 1 . . Max in Single Turn 1 | . 1 . . Machines Repaired . | . . . . Machines Dismantled . | . . . . Machines Sabotaged . | . . . . Overloaded Fab Kills . | . . . . Hacking | -11 -10 -10 -10 --------- Run | Yrd Mat Min Sub Machines Accessed 8 | . 7 . 1 Terminals 4 | . 4 . . Fabricators . | . . . . Repair Stations 1 | . 1 . . Recycling Units 2 | . 2 . . Scanalyzers . | . . . . Garrison Access . | . . . . Total Hacks 27 | . 23 . 4 Successful 15 | . 11 . 4 Failed 11 | . 11 . . Catastrophic . | . . . . Database Lockouts 1 | . 1 . . Manual 13 | . 13 . . Terminals 15 | . 15 . . Fabricators . | . . . . Repair Stations 3 | . 3 . . Recycling Units 5 | . 5 . . Scanalyzers . | . . . . Garrison Access . | . . . . Terminal Hacks 10 | . 6 . 4 Record 4 | . . . 4 Robot Analysis 2 | . 2 . . Prototype ID Bank 2 | . 2 . . Surveillance Status 1 | . 1 . . Zone Layout 1 | . 1 . . Fabricator Hacks . | . . . . Repair Station Hacks 2 | . 2 . . Scan Component 1 | . 1 . . Repair 1 | . 1 . . Recycling Unit Hacks 2 | . 2 . . Report Inventory 2 | . 2 . . Scanalyzer . | . . . . Garrison Access Hacks . | . . . . Unauthorized Hacks 1 | . 1 . . Terminals 1 | . 1 . . Botnet 1 | . 1 . . Fabricators . | . . . . Repair Stations . | . . . . Recycling Units . | . . . . Scanalyzers . | . . . . Garrison Access . | . . . . Data Cores Recovered . | . . . . Used . | . . . . Hacking Detections 4 | . 4 . . Full Trace Events . | . . . . Feedback Events . | . . . . Feedback Blocked . | . . . . Robot Schematics Acquired . | . . . . Robots Built . | . . . . Authchips . | . . . . Time . | . . . . Total Robot Build Rating . | . . . . Part Schematics Acquired . | . . . . Parts Built . | . . . . Authchips . | . . . . Time . | . . . . Total Part Build Rating . | . . . . Part Studies Acquired . | . . . . Parts Repaired 1 | . 1 . . Time 32 | . 32 . . Parts Recycled . | . . . . Recycled Matter . | . . . . Retrieved Matter . | . . . . Retrieved Components . | . . . . Parts Scanalyzed . | . . . . Part Schematics Acquired . | . . . . Parts Damaged . | . . . . Bothacking | -11 -10 -10 -10 ------------ Run | Yrd Mat Min Sub Used RIF Installer . | . . . . Robots Hacked . | . . . . Non-combat . | . . . . Combat . | . . . . Robot Hacks Applied . | . . . . Relay Couplers Released . | . . . . Fabnet Peak Effective % . | . . . . Robots Rewired . | . . . . Allies Hacked . | . . . . Hacks Repelled . | . . . . Allies | -11 -10 -10 -10 -------- Run | Yrd Mat Min Sub Total Allies . | . . . . Largest Group . | . . . . Highest-Rated Group . | . . . . Highest-Rated Ally . | . . . . Total Orders . | . . . . Ally Attacks . | . . . . Total Damage . | . . . . Kills . | . . . . Allies Corrupted . | . . . . Allies Melted . | . . . . Intel | -11 -10 -10 -10 ------- Run | Yrd Mat Min Sub Active Infowar (turns) 2243 | 13 410 322 1498 Sensors 725 | . . . 725 Terrain 1518 | 13 410 322 773 Robot Analysis Total 2 | . 2 . . Derelict Logs Recovered 2 | . . 1 1 Drone Launches . | . . . . Drone Recoveries . | . . . . Exploration | -11 -10 -10 -10 ------------- Run | Yrd Mat Min Sub Turns Passed 3652 | 87 1219 328 2018 Spaces Moved 1450 | 61 546 150 693 Core 9 | 9 . . . Treads 1179 | . 344 150 685 Legs 254 | 52 202 . . Wheels 8 | . . . 8 Hover . | . . . . Flight . | . . . . Fastest Speed 50 | 50 120 160 110 Average Speed 160 | 109 166 160 159 Slowest Speed 240 | 120 240 160 160 Overloaded Moves . | . . . . Propulsion Burnouts . | . . . . Robots Hopped . | . . . . Potential Cave-ins . | . . . . Cave-ins Triggered . | . . . . Exploration Rate (%) 38 | 3 86 39 24 Regions Visited 3 Branch Regions 2 Pre-discovered Areas 1 | . . . 1 Known Exits Taken . | . . . . Unknown Exits Taken 3 | 1 1 1 . Scrap Searched 1 | . . 1 . Spaces Dug 23 | . 1 . 22 Terrain Destroyed 99 | . 1 26 72 Melee 22 | . . . 22 Projectile 1 | . 1 . . AOE 76 | . . 26 50 Terrain Rammed . | . . . . Walls Destroyed . | . . . . Machines Disabled . | . . . . Actions | -11 -10 -10 -10 --------- Run | Yrd Mat Min Sub Total 2484 | 75 722 192 1495 Wait 799 | . 61 12 726 Move 1447 | 60 545 149 693 Hop . | . . . . Pick Up 25 | 7 16 . 2 Fast Attach 16 | 7 9 . . Attach 10 | . 5 1 4 Detach 4 | . 4 . . Swap 26 | . 8 4 14 Drop 12 | . 9 1 2 Fire 105 | 1 64 25 15 Melee 39 | . 1 . 38 Ram . | . . . . Kick . | . . . . Crush . | . . . . Escape Stasis . | . . . . Rewire . | . . . . Trap 1 | . . . 1 Miscellaneous . | . . . . Route ------- -11/Scrapyard -10/Materials (discovered 4 exits: [*Mat x3] / [*Min]) -10/Mines -10/Subcaves (discovered 1 exit: Rec) History --------- Turn | Location | Event 5 | -11/Scrapyard | Discovered new exit (range 16) 88 | -11/Scrapyard | Entered Materials 316 | -10/Materials | Build established: Mutant 450 | -10/Materials | Discovered new exit (range 5) 697 | -10/Materials | Discovered new exit (range 12) 748 | -10/Materials | Repaired Cooling System 1156 | -10/Materials | Discovered new exit (range 14) 1232 | -10/Materials | Discovered new exit (range 14) 1288 | -10/Materials | Central database locked down 1307 | -10/Materials | Entered Mines 1319 | -10/Mines | Met a Derelict bent on vengeance 1535 | -10/Mines | Learned Materials stockpile data 1616 | -10/Mines | Discovered new exit (range 8) 1619 | -10/Mines | Core integrity fell below 50% 1635 | -10/Mines | Entered Subcaves 1635 | -10/Subcaves | Learned location of 1 exit from Materials 1702 | -10/Subcaves | A swath of the cavern ceiling suddenly collapsed 1978 | -10/Subcaves | Visited Clippyterm 1983 | -10/Subcaves | Identified exit to Recycling 2447 | -10/Subcaves | Learned location of Zion (-7) 2447 | -10/Subcaves | Met a Zionite searching for "candidates" 3638 | -10/Subcaves | Core integrity fell below 20% 3653 | -10/Subcaves | Destroyed by KS-Q47(R) with Subdweller Laser Last Messages --------------- 02687_ 17-963(R) destroyed. 02693_ Acquired 22 matter. 02697_ Subatomizers dissect the Sub. Power Source. 02698_ Acquired 25 matter. 02710_ Subatomizers dissect the Sub. Power Source. 02716_ The unstable cave ceiling collapses. 02733_ Subatomizers dissect the Sub. Power Source. 02847_ Subatomizers dissect the Corrupted Sub. Optics. 02929_ Subatomizers dissect the Sub. Monowheel. 03588_ GN-5VI(u) deconstructs Twisted Machinery. 03634_ EM Pulse Gun destroyed. 03635_ Lgt. Treads destroyed. 03643_ Lgt. Ion Engine destroyed. 03649_ KS-Q47(R) knocked back. Map ----- +----------------------------------------------------+ | #??????????#??#??###### # ###?### ## | | ####???????##?##??##???###### ##?#?# | | #??????????????#???#?##?#???## ###### | | #???#?????#?#?####?#??##????###### ## ## | | # ##??#????????#??#?##????##?###?#?# | | # ##??????????????????????#?????#?#?# ## | | ## ##??????????#??????#???#?#?##?##?########## | | ?# ##????????????#???#?#??#???#?#??????????#??## | | ?## #??????????????????????#????####?????#?#???# | | ?# ###????????????##??#?##?#???????##??#???#???## | | ?##??????????????????##????#??#??????????#?????# | | ? ????????????????????###????#?###????#?#??????# | | ???????????????????????#???##????#?#?###??????## | | ??? ??????????????????????#???#???????#????????## | | ????????????????????????????#???##?#?????#?????# | | ???????????????????????????????#?#?????????????### | | ????????????????#??????????????#????????????????## | | ????????????????? ##???????????????????????????## | | ????????????????? ??????####???????????????## | | ?????????????????? ??#### ##??????????????# | | ??????????????????? ### #????????###???# | | ????????????????????? #####???## ##??##" | | ??????????????????????# ## ## ##### #???#" | | ??????????????????????# ## ## #???#" | | ?????????????? ?????# ;;R # #???## | | ???????????? ##R@ #?### | | ??????????????????# ### | | ??????????????????## | | ???????????????????## ### | | ????????????????????## #?## | | ?????????????????????## #### | | ????????????????????# ; | | ????????????????????# # # # ### | | ????????????????????# # ######## #?# | | ???????????????????# ## ??????### ##?## ## | | ???????????????????## ? ????????###???######## | | ????????????????????# ## ?????????????????????? | | ????????????????????##?? ?????????????????????? | | ???????????????????????? ?????????????????????? | | ???????????????????????" #?????????????????????? | | ???????????????????????" ##??????????????????????? | | ???????????????????????? ????????????????????????? | | ?????????????????????????????????????????????????? | | ?????????????????????????????????????????????????? | | ?????????????????????????????????????????????????? | | ?????????????????????????????????????????????????? | | ?????????????????????????????????????????????????? | | ?????????????????????????????????????????????????? | | ?????????????????????????????????????????????????? | | ?????????????????????????????????????????????????? | +----------------------------------------------------+ Best States ------------- Heat Dissipation 47 Energy Generation 10 Energy Capacity 250 Matter Stores 300 Matter Capacity 300 Sight Range 16 Robot Scan Range 14 Terrain Scan Range 16 Terrain Scan Density 10 Core Shielding 20 Evasion (%) 50 Recoil Reduction 2 Item Schematics ----------------- None Robot Schematics ------------------ None Fabricated ------------ Nothing Repaired ---------- Cooling System | 38% | -10/Materials Studied --------- None Alien Tech Used ----------------- None Achievements -------------- None Challenges ------------ None Game ------ Seed ImprovedTrackerFrame Manual? 0 Play Time 00:26:20 Cumulative 149.5 hours Start 2026.03.09 @ 07:13:01 End 2026.03.09 @ 07:39:02 Sessions 1 Manual Loads 0 Difficulty Rogue Special Mode None Game No. 120 Rogue 120 Adventurer 0 Explorer 0 Win Type - Total 0 Types 0/0/0/0/0/0/0/0/0/0 Lore% 54 Gallery% 48 Achievement% 37 Wizard Run 0 Options --------- Layout 1 ASCII 1 Keyboard 1 Movement Numpad Keybinds 0 Fullscreen 1 Font 24/Smallcaps Map View 50x35 Zoom Use 0% Tactical HUD 1 Map Filters NONE Filters NONE Steam 1 RUN: 189ce788-a613-46f3-a012-3b695c372b80